[Event "110th Anniversary Open 2020"]
[Site "Hilleroed"]
[Date "2020.02.13"]
[Round "7.10"]
[White "Petersen, Peter Birk"]
[Black "Holm, Henrik"]
[Result "1-0"]
[ECO "B01"]
[WhiteElo "2117"]
[BlackElo "1802"]
[Annotator "ChessBase"]
[PlyCount "95"]
[EventDate "2020.02.08"]
[EventType "swiss"]
[EventCountry "DEN"]
[SourceTitle "playchess.com"]
[Source "ChessBase"]
[SourceQuality "1"]
[TimeControl "40/5400+30:1800+30"]

1. e4 {[%emt 0:00:00]} d5 {[%emt 0:00:00]} 2. exd5 {[%emt 0:00:00]} Nf6 {[%emt 0:00:17]} 3. d4 {[%emt 0:00:45]} Nxd5 {[%emt 0:00:26]} 4. c4 {[%emt 0:00:21]} Nb4 {[%emt 0:00:22]} 5. a3 {[%emt 0:01:28]} N4c6 {[%emt 0:00:32]} 6. d5 {[%emt 0:00:35]} Ne5 {[%emt 0:00:09]} 7. Nc3 {[%emt 0:01:27]} Nbd7 {[%emt 0:00:30]} 8. Be3 {[%emt 0:07:14]} Nf6 {[%emt 0:04:00]} 9. Bd4 {[%emt 0:01:57]} Ng6 {[%emt 0:00:21]} 10. Nf3 {[%emt 0:07:08]} e6 {[%emt 0:04:02]} 11. Qb3 {[%emt 0:05:55]} b6 {[%emt 0:19:09]} 12. O-O-O {[%emt 0:02:07]} Bd6 {[%emt 0:01:18]} 13. c5 {[%emt 0:11:33]} bxc5 {[%emt 0:01:06]} 14. Bb5+ {[%emt 0:06:31]} Bd7 {[%emt 0:04:32]} 15. dxe6 {[%emt 0:02:26]} cxd4 {[%emt 0:12:11]} 16. exd7+ {[%emt 0:00:32]} Kf8 {[%emt 0:01:08]} 17. Nxd4 {[%emt 0:05:20]} Ne5 {[%emt 0:09:04]} 18. Nf5 {[%emt 0:03:41]} Nexd7 {[%emt 0:13:43]} 19. Nxd6 {[%emt 0:01:32]} cxd6 {[%emt 0:00:13]} 20. Rxd6 {[%emt 0:01:44]} Qc7 {[%emt 0:00:20]} 21. Rhd1 {[%emt 0:03:31]} Rb8 {[%emt 0:01:31]} 22. Qc2 {[%emt 0:05:47]} Nb6 {[%emt 0:01:54]} 23. Kb1 {[%emt 0:02:02]} Ne8 {[%emt 0:01:01]} 24. Bxe8 {[%emt 0:03:28]} Rxe8 {[%emt 0:00:12]} 25. Qf5 {[%emt 0:00:37]} g6 {[%emt 0:01:28]} 26. Qf6 {[%emt 0:02:35]} Rg8 {[%emt 0:00:43]} 27. Nb5 {[%emt 0:02:17]} Qe7 {[%emt 0:08:58]} 28. Nxa7 {[%emt 0:00:47]} Qxf6 {[%emt 0:02:07]} 29. Rxf6 {[%emt 0:01:09]} Nc4 {[%emt 0:02:17]} 30. Rf4 {[%emt 0:02:24]} Na5 {[%emt 0:04:42]} 31. Nb5 {[%emt 0:03:26]} Re7 {[%emt 0:00:31]} 32. Ra4 {[%emt 0:01:21]} Nc6 {[%emt 0:01:47]} 33. Ra8+ {[%emt 0:00:33]} Kg7 {[%emt 0:00:08]} 34. Rxg8+ {[%emt 0:00:04]} Kxg8 {[%emt 0:00:06]} 35. Kc2 {[%emt 0:01:15]} Re5 {[%emt 0:00:34]} 36. Nc3 {[%emt 0:00:22]} Rf5 {[%emt 0:01:33]} 37. f3 {[%emt 0:02:07]} h5 {[%emt 0:00:28]} 38. b4 {[%emt 0:01:16]} h4 {[%emt 0:00:16]} 39. h3 {[%emt 0:00:28]} Kg7 {[%emt 0:01:25]} 40. Ne4 {[%emt 0:01:28]} Ne5 {[%emt 0:01:04]} 41. Kc3 {[%emt 0:30:30]} f6 {[%emt 0:04:40]} 42. a4 {[%emt 0:00:00]} g5 {[%emt 0:01:23]} 43. Nd6 {[%emt 0:00:00]} Rf4 {[%emt 0:00:22]} 44. Rd4 {[%emt 0:00:00]} Ng6 {[%emt 0:00:47]} 45. a5 {[%emt 0:00:00]} g4 {[%emt 0:02:03]} 46. Rxf4 {[%emt 0:00:00]} gxh3 {[%emt 0:00:32]} 47. gxh3 {[%emt 0:00:00]} Nxf4 {[%emt 0:00:08]} 48. Nf5+ {[%emt 0:14:17]} 1-0